Cogmind - Beta 13 @@@ ROGUE MODE // 2024.04.02 @ 04:29:35 Player: DeluxeH30 Result: Destroyed by G-47 Trooper with Particle Gun Performance ------------- Evolutions (2) 1000 Regions Visited (3) 600 Robots Destroyed (55) 275 Value Destroyed (912) 912 Prototype IDs (4) 80 Alien Tech Used (0) 0 Bonus (0) 0 TOTAL SCORE: 2867 Bonus ------- None Cogmind --------- Core Integrity 0/550 Matter 300/300 Energy 100/100 System Corruption 0% Temperature Cool (9) Movement Core (200) Ox3 Location -8/Materials Parts ------- > --- POWER (2) -------- (None) > --- PROPULSION (4) --- (None) > --- UTILITY (3) ------ Small Storage Unit > --- WEAPON (2) ------- Heavy Hammer Scythe > --- INVENTORY (8) ---- Light Nuclear Core Aluminum Leg Improved Assault Rifle Rocket Launcher Rocket Launcher Improved Datajack Peak State ------------ > --- POWER ------------ Light Ion Engine Light Nuclear Core > --- PROPULSION ------- Aluminum Leg Aluminum Leg Carbon-fiber Leg Carbon-fiber Leg > --- UTILITY ---------- Improved Heat Sink Small Storage Unit Improved Terrain Scanner > --- WEAPON ----------- Improved Assault Rifle Improved Assault Rifle > --- INVENTORY -------- Ion Engine Light Ion Engine Hardlight Generator Hardlight Generator Rocket Launcher Rocket Launcher Datajack Heavy Hammer [Rating: 26] Favorites ----------- Power Light Ion Engine Engine Light Ion Engine Power Core Light Nuclear Core Propulsion Aluminum Leg Leg Aluminum Leg Hover Unit Hover Unit Flight Unit Flight Unit Utility Small Storage Unit Device Improved Heat Sink Storage Small Storage Unit Protection Light Armor Plating Weapon Improved Assault Rifle Energy Gun Medium Laser Energy Cannon Advanced Beam Cannon Ballistic Gun Improved Assault Rifle Ballistic Cannon Improved Light Cannon Launcher Grenade Launcher Impact Weapon Heavy Hammer Slashing Weapon Scythe Build | -11 -10 -9 -8 ------- Run | Yrd Mat Mat Mat Slots Evolved 4 | . . 2 2 Power 1 | . . . 1 Propulsion 2 | . . 1 1 Utility 1 | . . 1 . Weapon . | . . . . Parts Attached 80 | 6 20 29 25 Power 21 | 1 4 5 11 Engine 20 | 1 4 5 10 Core 1 | . . . 1 Reactor . | . . . . Propulsion 23 | 2 9 9 3 Treads . | . . . . Leg 17 | 2 5 7 3 Wheel . | . . . . Hover 4 | . 2 2 . Flight 2 | . 2 . . Utility 10 | 1 1 4 4 Device 6 | . . 2 4 Storage 3 | 1 . 2 . Processor . | . . . . Hackware . | . . . . Protection 1 | . 1 . . Artifact . | . . . . Weapon 26 | 2 6 11 7 Energy Gun 4 | . 4 . . Energy Cannon 1 | . . 1 . Ballistic Gun 10 | 2 1 4 3 Ballistic Cannon 3 | . . 3 . Launcher 2 | . 1 1 . Special Weapon . | . . . . Impact Weapon 5 | . . 2 3 Slashing Weapon 1 | . . . 1 Piercing Weapon . | . . . . Special Melee Weapon . | . . . . Unidentified Prototypes 2 | . . 2 . Corrupted Parts 1 | . 1 . . System Corruption 3 | . 3 . . Parts Lost 26 | . 12 3 11 Power 8 | . 2 2 4 Propulsion 11 | . 5 1 5 Utility 3 | . 1 . 2 Weapon 4 | . 4 . . Highest Loss Streak 8 | . 8 3 8 To Critical Strikes . | . . . . Average Slot Usage (%) 89 | . 87 91 88 Engine 11 | . 13 10 12 Core 1 | . . . 4 Leg 27 | . 24 30 27 Device 12 | . . 17 17 Storage 11 | . 14 11 9 Protection 1 | . 7 . . Energy Gun 2 | . 8 . . Energy Cannon 2 | . . 7 . Ballistic Gun 10 | . 16 7 11 Ballistic Cannon 1 | . . 4 . Impact Weapon 3 | . . 3 5 Naked Turns . | . . . . Heaviest Build 25 | 12 16 19 25 Greatest Support 50 | 20 20 36 50 Greatest Overweight (x) 6 | 1 2 1 6 Average Overweight (x) . | . . . . Largest Inventory Capacity 8 | 8 8 8 8 Average Capacity 7 | 5 8 8 8 Most Carried 8 | 5 6 8 8 Average Carried 6 | 2 3 7 7 Final Capacity 8 | 8 8 8 8 Final Carried 8 | 2 5 8 6 Class Distribution -------------------- 64% | Scavenger-Mutant 35% | Mutant Dominant Class ---------------- Mutant | -10/Materials Scavenger-Mutant | -9/Materials Scavenger-Mutant | -8/Materials Resources | -11 -10 -9 -8 ----------- Run | Yrd Mat Mat Mat Matter Collected 1472 | 192 297 521 462 Remotely . | . . . . Salvage Created 2006 | 73 704 810 419 Parts 105 | 1 47 25 32 Haulers Intercepted 5 | . 1 4 . Recyclers Shooed 4 | . 2 2 . Parts Field Recycled . | . . . . Retrieved Matter . | . . . . Parts Self-Destructed . | . . . . Prevented . | . . . . Kills | -11 -10 -9 -8 ------- Run | Yrd Mat Mat Mat Combat Hostiles Destroyed 22 | . 9 5 8 Melee 3 | . . . 3 Guns 14 | . 7 2 5 Cannons 3 | . . 3 . AOE 2 | . 2 . . Classes Destroyed 11 | 1 6 . 4 Worker 3 | . 2 1 . Builder 7 | . 4 1 2 Tunneler 2 | . . . 2 Hauler 5 | . 1 4 . Recycler 10 | 1 3 5 1 Operator 1 | . . . 1 Watcher 5 | . 3 2 . Swarmer 7 | . 2 1 4 Grunt 13 | . 7 4 2 Sentry 1 | . . . 1 Hunter 1 | . . . 1 Best Kill Streak 11 | 1 11 5 4 Combat Bots Only 4 | . 3 2 4 Max Kills in Single Turn 4 | 1 4 1 1 Gunslinging 1 | . 1 . . Exploded 1 | . 1 . . Melee 1 | . . . 1 Uniques/NPCs Destroyed . | . . . . Combat | -11 -10 -9 -8 -------- Run | Yrd Mat Mat Mat Hostile Shots Fired 405 | . 146 70 189 Missed 125 | . 48 16 61 Damage Taken 3571 | . 1363 661 1547 Core 951 | . 238 161 552 Absorbed by Shields 212 | . . . 212 Core Remaining (%) 54 | 100 4 59 . Volleys Fired 152 | 4 71 55 22 Largest 2 | 1 2 2 2 Hottest 115 | 20 115 107 46 Shots Fired 279 | 4 129 105 41 Gun 196 | 4 119 32 41 Cannon 73 | . . 73 . Launcher 10 | . 10 . . Special . | . . . . Kinetic 193 | 4 80 68 41 Thermal 73 | . 36 37 . Explosive 10 | . 10 . . Electromagnetic 3 | . 3 . . Robot Hit Streak 9 | 2 7 7 9 Robot Miss Streak 6 | 1 3 6 3 Penetration Max . | . . . . Secondary Targets 5 | . 3 1 1 Max Gunslinging Chain 1 | . 1 1 1 Shots Hit Robots 169 | 3 75 54 37 Core Hits 78 | 2 39 21 16 Critical Kills . | . . . . Critical Parts Destroyed . | . . . . Critical Strikes 3 | . 1 2 . Burn 1 | . 1 . . Blast 2 | . . 2 . Melee Attacks 37 | . . 4 33 Impact 31 | . . 4 27 Slashing 6 | . . . 6 Piercing . | . . . . Sneak Attacks 5 | . . 1 4 Combat Hostiles . | . . . . Follow-up Attacks . | . . . . Damage Inflicted 3253 | 30 1271 1046 906 Guns 1439 | 30 743 308 358 Cannons 653 | . . 653 . Explosions 528 | . 528 . . Melee 627 | . . 85 542 Ramming 6 | . . . 6 Kinetic 1385 | 30 405 592 358 Thermal 662 | . 293 369 . Explosive 528 | . 528 . . Electromagnetic 45 | . 45 . . Impact 505 | . . 85 420 Slashing 122 | . . . 122 Piercing . | . . . . Highest Corruption 3 | . 3 . . Average Corruption 3 | . 3 . . Corruption Purged . | . . . . Corruption Blocked . | . . . . Effects 5 | . 5 . . Message Errors 1 | . 1 . . Matter Fused 1 | . 1 . . Heat Flow Errors 1 | . 1 . . Energy Discharges 1 | . 1 . . Data Loss (major) 1 | . 1 . . Overload Shots . | . . . . Overflow Damage 185 | . 5 59 121 Projectiles 14 | . . 14 . Explosions 5 | . 5 . . Melee 166 | . . 45 121 Knockbacks 4 | . . 4 . Impact 1 | . . 1 . Kinetic 3 | . . 3 . Secondary . | . . . . Self-Inflicted Damage 124 | . 124 . . Shots 5 | . 5 . . Rammed . | . . . . Targets Rammed 2 | . . . 2 Kicked 2 | . . . 2 Crushed . | . . . . Highest Temperature 451 | . 289 451 4 Average Temperature 93 | . 66 156 3 Received Heat Transfer 1618 | . 693 330 595 Effects 3 | . . 3 . Energy Bleed 1 | . . 1 . Matter Decay 1 | . . 1 . Short Circuit 1 | . . 1 . Siege Activations . | . . . . Robots Corrupted . | . . . . Combat Hostiles . | . . . . Parts Fried 9 | . 1 2 6 Impact Corruptions 4 | . . 2 2 Robots Melted . | . . . . Combat Hostiles . | . . . . Parts Melted 2 | . 1 1 . Heat Transferred 1554 | . 888 666 . Parts Sabotaged . | . . . . Parts Stolen . | . . . . Parts Stripped . | . . . . Power Chain Reactions . | . . . . Alert | -11 -10 -9 -8 ------- Run | Yrd Mat Mat Mat Peak Influence 211 | 5 211 185 178 Initial 20 | . 3 16 20 Average 74 | 2 64 93 65 Maximum Alert Level 1 | . 1 . . Low Security (%) 98 | 100 93 100 100 Level 1 1 | . 6 . . Level 2 . | . . . . Level 3 . | . . . . Level 4 . | . . . . Level 5 . | . . . . High Security . | . . . . Max Security . | . . . . Squads Dispatched 6 | . 3 2 1 Investigation 2 | . 1 1 . Extermination . | . . . . Reinforcement 4 | . 2 1 1 Assault . | . . . . Garrison . | . . . . Intercept . | . . . . Searches Triggered . | . . . . Construction Impeded . | . . . . Haulers Reinforced . | . . . . Active Scanning Responses . | . . . . Cargo Convoy Interrupts . | . . . . Stealth | -11 -10 -9 -8 --------- Run | Yrd Mat Mat Mat Distress Signals 3 | . . 2 1 Communications Jammed . | . . . . Distress Signals . | . . . . Times Spotted 54 | . 16 18 20 Peak Tracking Total 7 | . 4 5 7 Tactical Retreats 6 | . . 4 2 Traps | -11 -10 -9 -8 ------- Run | Yrd Mat Mat Mat Traps Triggered 3 | . 2 . 1 Indirectly . | . . . . Trap Hack Attempts . | . . . . Triggered . | . . . . Disarmed . | . . . . Reprogrammed . | . . . . Reused . | . . . . Traps Extracted . | . . . . Installed . | . . . . Triggered . | . . . . Machines | -11 -10 -9 -8 ---------- Run | Yrd Mat Mat Mat Machines Disabled 3 | . . 3 . Max in Single Turn 2 | . . 2 . Machines Repaired . | . . . . Machines Dismantled . | . . . . Machines Sabotaged . | . . . . Overloaded Fab Kills . | . . . . Hacking | -11 -10 -9 -8 --------- Run | Yrd Mat Mat Mat Machines Accessed 8 | . 2 5 1 Terminals 6 | . 1 4 1 Fabricators . | . . . . Repair Stations . | . . . . Recycling Units 2 | . 1 1 . Scanalyzers . | . . . . Garrison Access . | . . . . Total Hacks 19 | . 3 12 4 Successful 8 | . 1 3 4 Failed 11 | . 2 9 . Catastrophic 3 | . 1 2 . Database Lockouts . | . . . . Manual . | . . . . Terminals 14 | . 2 8 4 Fabricators . | . . . . Repair Stations . | . . . . Recycling Units 5 | . 1 4 . Scanalyzers . | . . . . Garrison Access . | . . . . Terminal Hacks 6 | . . 2 4 Prototype ID Bank 1 | . . 1 . Emergency Access Points 1 | . . . 1 Alert Level 1 | . . . 1 Investigation Status 1 | . . . 1 Zone Layout 2 | . . 1 1 Fabricator Hacks . | . . . . Repair Station Hacks . | . . . . Recycling Unit Hacks 2 | . 1 1 . Report Inventory 2 | . 1 1 . Scanalyzer . | . . . . Garrison Access Hacks . | . . . . Unauthorized Hacks . | . . . . Terminals . | . . . . Fabricators . | . . . . Repair Stations . | . . . . Recycling Units . | . . . . Scanalyzers . | . . . . Garrison Access . | . . . . Data Cores Recovered . | . . . . Used . | . . . . Hacking Detections 6 | . 1 4 1 Full Trace Events 2 | . . 2 . Feedback Events . | . . . . Feedback Blocked . | . . . . Robot Schematics Acquired . | . . . . Robots Built . | . . . . Authchips . | . . . . Time . | . . . . Total Robot Build Rating . | . . . . Part Schematics Acquired . | . . . . Parts Built . | . . . . Authchips . | . . . . Time . | . . . . Total Part Build Rating . | . . . . Parts Repaired . | . . . . Time . | . . . . Parts Recycled . | . . . . Recycled Matter . | . . . . Retrieved Matter . | . . . . Retrieved Components . | . . . . Parts Scanalyzed . | . . . . Part Schematics Acquired . | . . . . Parts Damaged . | . . . . Bothacking | -11 -10 -9 -8 ------------ Run | Yrd Mat Mat Mat Used RIF Installer . | . . . . Robots Hacked . | . . . . Non-combat . | . . . . Combat . | . . . . Robot Hacks Applied . | . . . . Relay Couplers Released . | . . . . Fabnet Peak Effective % . | . . . . Robots Rewired . | . . . . Allies Hacked . | . . . . Hacks Repelled . | . . . . Allies | -11 -10 -9 -8 -------- Run | Yrd Mat Mat Mat Total Allies . | . . . . Largest Group . | . . . . Highest-Rated Group . | . . . . Highest-Rated Ally . | . . . . Total Orders . | . . . . Ally Attacks . | . . . . Total Damage . | . . . . Kills . | . . . . Allies Corrupted . | . . . . Allies Melted . | . . . . Intel | -11 -10 -9 -8 ------- Run | Yrd Mat Mat Mat Robot Analysis Total . | . . . . Derelict Logs Recovered . | . . . . Drone Launches . | . . . . Drone Recoveries . | . . . . Exploration | -11 -10 -9 -8 ------------- Run | Yrd Mat Mat Mat Turns Passed 2144 | 73 509 827 735 Spaces Moved 1017 | 52 216 337 412 Core 43 | 27 7 . 9 Treads . | . . . . Legs 962 | 25 197 337 403 Wheels . | . . . . Hover 4 | . 4 . . Flight 8 | . 8 . . Fastest Speed 50 | 50 56 120 120 Average Speed 122 | 101 125 121 124 Slowest Speed 350 | 120 210 190 350 Overloaded Moves . | . . . . Propulsion Burnouts . | . . . . Robots Hopped . | . . . . Cave-ins Triggered . | . . . . Exploration Rate (%) 24 | 4 37 30 26 Regions Visited 3 Branch Regions . Pre-discovered Areas . | . . . . Known Exits Taken . | . . . . Unknown Exits Taken 3 | 1 1 1 . Scrap Searched . | . . . . Spaces Dug 21 | . . 1 20 Terrain Destroyed 86 | . 64 2 20 Melee 21 | . . 1 20 Projectile 1 | . . 1 . AOE 64 | . 64 . . Terrain Rammed . | . . . . Walls Destroyed . | . . . . Machines Disabled . | . . . . Actions | -11 -10 -9 -8 --------- Run | Yrd Mat Mat Mat Total 1601 | 69 342 649 541 Wait 190 | . . 179 11 Move 1014 | 51 215 336 412 Hop . | . . . . Pick Up 76 | 8 24 27 17 Fast Attach 5 | . . 1 4 Attach 33 | 6 11 9 7 Detach . | . . . . Swap 42 | . 9 19 14 Drop 50 | . 12 19 19 Fire 152 | 4 71 55 22 Melee 37 | . . 4 33 Ram . | . . . . Kick 2 | . . . 2 Crush . | . . . . Escape Stasis . | . . . . Rewire . | . . . . Trap . | . . . . Miscellaneous . | . . . . Route ------- -11/Scrapyard -10/Materials (discovered 2 exits: *Mat x2) -9/Materials -8/Materials (discovered 1 exit: [*Sto]) History --------- Turn | Location | Event 19 | -11/Scrapyard | Discovered new exit (range 14) 74 | -11/Scrapyard | Entered Materials 328 | -10/Materials | Build established: Mutant 364 | -10/Materials | Core integrity fell below 50% 389 | -10/Materials | Discovered new exit (range 15) 420 | -10/Materials | Lost 8 parts (1p2n1u4w) 430 | -10/Materials | Core integrity fell below 20% 507 | -10/Materials | Discovered new exit (range 15) 583 | -10/Materials | Entered another Materials area 583 | -9/Materials | Evolved 2 slots: Propulsion x1, Utility x1 610 | -9/Materials | Lost 3 parts (1p2n) 758 | -9/Materials | Lost 3 parts (2p1n) 1020 | -9/Materials | Build established: Scavenger-Mutant 1354 | -9/Materials | Discovered new exit (range 3) 1410 | -9/Materials | Entered another Materials area 1410 | -8/Materials | Evolved 2 slots: Power x1, Propulsion x1 1421 | -8/Materials | Discovered new exit (range 13) 2096 | -8/Materials | Core integrity fell below 50% 2135 | -8/Materials | Core integrity fell below 20% 2145 | -8/Materials | Destroyed by G-47 Trooper with Particle Gun Last Messages --------------- 02082_ T-07 Excavator system corrupted by crushing effect. 02082_ Seismic Detector fried. 02082_ Wheel fried. 02082_ T-07 Excavator destroyed. 02083_ Acquired 12 matter. 02090_ Critical hit (Burn: +26). 02099_ Lgt. Ion Engine destroyed. 02102_ Carbon-fiber Leg destroyed. 02103_ Critical hit (Burn: +26). 02103_ Acquired Scythe. 02105_ Y-45 Defender destroyed. 02115_ Hardlight Generator destroyed. 02116_ Imp. Terrain Scanner destroyed. 02119_ Lgt. Ion Engine destroyed. 02121_ G-47 Trooper destroyed. 02122_ Acquired 10 matter. 02126_ Lgt. Ion Engine destroyed. 02129_ Acquired Aluminum Leg. 02132_ Acquired Lgt. Nuclear Core. 02144_ G-47 Trooper destroyed. Map ----- +----------------------------------------------------+ | | | | | | | | | | | | | | | | | | | | | ?????????????????????????#???????????? | | ????????????????????????????#?#??????? | | ?????????????????????????????????????? | | ?????????????????????????????????#???? | | ??????????????#??????????????????????? | | ?????????????????????????????????????? | | ???????????????????????????#?????????? | | ?????????????????????????????????????? | | ?????????????????????????????????????? | | ?????????????????????????????????????? | | ???????????#??????????????########???? | | ? ?????????????#???????#??#! // ##??? | | ????????????????? ???? #### /![ #??? | | """ #???????????????# #] *!%#???? | | """ ##?????#????????#[%# ! #???? | | """ #???????????????+ @/% [ #??#? | | #???????????? ??# # ! #???? | | ######################## g####+###???? | | ! ## T g ### #?????? | | ## #????? | | "" ![* ^ #????? | | """ ## #### #????? | | """"" ## = ^ ##?#?+#????? | | """"" ## #??????????? | | ## +???? ?????? | | ## """ #??????????? | | ##+###### """ # ?????????? | | ?# #????# """ #### ##??????????? | | ##+###### #??# #???????????? | | # #?## #??#????????? | | # """ #??? #???????????? | | # """ #??? ##??????????? | | # "?" #???+#???????????? | | + ? #????????????????? | | "" # ?? ?????????????????? | | G" # ???? ????????????????????? | | "" ##" ?????????????????????????? | | ##"R?????????????????????????? | | ##########""?????????????????????????? | | ????#????###?????????????????????????? | +----------------------------------------------------+ Best States ------------- Heat Dissipation 45 Energy Generation 19 Energy Capacity 275 Matter Stores 300 Matter Capacity 300 Sight Range 16 Terrain Scan Range 16 Terrain Scan Density 10 Additional Mass Support 6 Armor Coverage 150 Evasion (%) 55 Item Schematics ----------------- None Robot Schematics ------------------ None Fabricated ------------ Nothing Alien Tech Used ----------------- None Achievements -------------- Close Call Part-time Excavator Challenges ------------ None Game ------ Seed InsulatedSingularityScrap Manual? 0 Play Time 00:25:54 Cumulative 12.7 hours Start 2024.04.02 @ 04:03:57 End 2024.04.02 @ 04:29:35 Sessions 1 Manual Loads 0 Difficulty Rogue Special Mode None Game No. 18 Rogue 18 Adventurer 0 Explorer 0 Win Type - Total 0 Types 0/0/0/0/0/0/0/0/0 Lore% 9 Gallery% 18 Achievement% 14 Wizard Run 0 Options --------- Layout 0 ASCII 0 Keyboard 0 Movement Mouse Keybinds 0 Fullscreen 2 Font 24/Smallcaps Map View 76x50 Zoom Use 0% Tactical HUD 1 Map Filters NONE Filters NONE Steam 1 RUN: 451785dd-63b5-439e-a8c2-3add50aabe5f